Cogmind - Beta 16 @@@ ROGUE MODE // 2025.11.18 @ 00:55:05 // Winter2019/RPGLIKE Player: Jaegerpls Result: Destroyed by L-41 Fighter with Axe Performance ------------- Evolutions (4) 2000 Regions Visited (5) 1000 Robots Destroyed (52) 260 Value Destroyed (1277) 1277 Prototype IDs (8) 160 Alien Tech Used (0) 0 Bonus (800) 800 TOTAL SCORE: 5497 Bonus ------- Registered with UFD 300 Met Optimus in HQ 500 Cogmind --------- Core Integrity 0/750 Matter 190/300 Energy 76/100 System Corruption 0% Temperature Cool (0) Movement Treading (157) Location -6/Factory Parts ------- > --- POWER (1) -------- (None) > --- PROPULSION (2) --- Armored Treads Advanced Treads > --- UTILITY (6) ------ Improved Signal Interpreter Improved Terrain Scanner Surveybot 17 Chip Advanced Targeting Computer Matter Filter Kinecellerator > --- WEAPON (2) ------- Assault Cannon Assault Cannon > --- INVENTORY (1) ---- High-powered Tractor Beam Peak State ------------ > --- POWER ------------ Cold Fusion Reactor > --- PROPULSION ------- Armored Treads Advanced Treads > --- UTILITY ---------- Improved Signal Interpreter Improved Terrain Scanner Surveybot 17 Chip Advanced Targeting Computer Matter Filter Kinecellerator > --- WEAPON ----------- Assault Cannon Assault Cannon > --- INVENTORY -------- High-powered Tractor Beam [Rating: 42] Favorites ----------- Power Ion Engine Engine Ion Engine Power Core Nuclear Core Reactor Cold Fusion Reactor Propulsion Light Treads Treads Light Treads Utility Improved Terrain Scanner Device Improved Terrain Scanner Processor Targeting Computer Hackware Hacking Suite Protection Scrap Shield Weapon Battle Cannon Energy Gun Autobeam Ballistic Gun Assault Rifle Ballistic Cannon Battle Cannon Build | -11 -10 -10 -8 -8 -6 ------- Run | Yrd Mat Sub Rec Scr Fac Slots Evolved 7 | 4 1 1 . . 1 Power . | . . . . . . Propulsion 1 | 1 . . . . . Utility 5 | 2 1 1 . . 1 Weapon 1 | 1 . . . . . Parts Attached 37 | 6 8 9 7 5 2 Power 4 | 1 . 1 1 . 1 Engine 2 | 1 . 1 . . . Core 1 | . . . 1 . . Reactor 1 | . . . . . 1 Propulsion 6 | 2 1 . 3 . . Treads 6 | 2 1 . 3 . . Leg . | . . . . . . Wheel . | . . . . . . Hover . | . . . . . . Flight . | . . . . . . Utility 14 | 1 3 4 1 4 1 Device 5 | 1 2 . . 2 . Storage . | . . . . . . Processor 5 | . 1 . 1 2 1 Hackware 1 | . . 1 . . . Protection 3 | . . 3 . . . Artifact . | . . . . . . Weapon 13 | 2 4 4 2 1 . Energy Gun 3 | . 2 1 . . . Energy Cannon . | . . . . . . Ballistic Gun 3 | 2 1 . . . . Ballistic Cannon 7 | . 1 3 2 1 . Launcher . | . . . . . . Special Weapon . | . . . . . . Impact Weapon . | . . . . . . Slashing Weapon . | . . . . . . Piercing Weapon . | . . . . . . Special Melee Weapon . | . . . . . . Unidentified Prototypes 2 | . 1 . . . 1 Parts Lost . | . . . . . . Power . | . . . . . . Propulsion . | . . . . . . Utility . | . . . . . . Weapon . | . . . . . . Highest Loss Streak . | . . . . . . To Critical Strikes . | . . . . . . Average Backups . | . . 1 1 1 1 Power . | . . . . . . Propulsion . | . . . . . . Utility . | . . . . 1 1 Weapon . | . . . . . . Tool/Special . | . . . . . . Unused Backups 2 | . 1 . . . 1 Power . | . . . . . . Propulsion . | . . . . . . Utility 1 | . . . . . 1 Weapon . | . . . . . . Tool/Special 1 | . 1 . . . . Average Slot Usage (%) 95 | . 95 95 90 96 99 Engine 7 | . 11 10 . . . Core 3 | . . . 9 10 1 Treads 21 | . 24 21 20 20 18 Device 22 | . 24 21 20 25 27 Processor 12 | . 8 10 10 19 26 Hackware 1 | . . 3 . . . Protection 4 | . . 5 10 1 . Energy Gun 3 | . 7 4 . . . Ballistic Gun 1 | . 8 . . . . Ballistic Cannon 16 | . 8 17 20 20 18 Peak Build Rating 42 | 8 14 24 27 36 42 Average Rating 20 | 7 11 18 21 32 41 On Entrance 17 | . 8 14 21 27 36 Avg Prop Armor Cover (%) . | . . . . . . Naked Turns . | . . . . . . Heaviest Build 37 | 10 13 32 37 37 30 Greatest Support 42 | 40 40 40 42 42 42 Greatest Overweight (x) 3 | . 3 . . . . Average Overweight (x) . | . . . . . . Largest Inventory Capacity 1 | 1 1 1 1 1 1 Average Capacity 1 | 1 1 1 1 1 1 Most Carried 1 | . 1 1 1 1 1 Average Carried . | . . . 1 1 1 Final Capacity 1 | 1 1 1 1 1 1 Final Carried 1 | . 1 1 1 1 1 Class Distribution -------------------- 54% | Mutant 24% | Scavenger-Mutant 21% | Skirmisher Dominant Class ---------------- Mutant | -10/Materials Scavenger-Mutant | -10/Subcaves Mutant | -8/Recycling Skirmisher | -8/Scraptown Skirmisher | -6/Factory Resources | -11 -10 -10 -8 -8 -6 ----------- Run | Yrd Mat Sub Rec Scr Fac Matter Collected 1794 | 312 518 804 130 30 . Remotely 315 | . 315 . . . . Salvage Created 1543 | 81 742 481 239 . . Parts 90 | 6 44 33 7 . . Haulers Intercepted 2 | . 2 . . . . Recyclers Shooed 2 | . 2 . . . . Parts Field Recycled . | . . . . . . Retrieved Matter . | . . . . . . Parts Self-Destructed 4 | . . 4 . . . Prevented . | . . . . . . Parts Restored . | . . . . . . Kills | -11 -10 -10 -8 -8 -6 ------- Run | Yrd Mat Sub Rec Scr Fac Combat Hostiles Destroyed 33 | . 12 19 2 . . Guns 16 | . 12 4 . . . Cannons 17 | . . 15 2 . . Classes Destroyed 11 | 2 6 2 1 . . Worker 2 | . 2 . . . . Tunneler 3 | 2 1 . . . . Hauler 2 | . 2 . . . . Recycler 5 | 1 2 . 2 . . Operator 2 | . 2 . . . . Turret 2 | . . 2 . . . Watcher 3 | . 3 . . . . Swarmer 9 | . 6 3 . . . Grunt 6 | . 6 . . . . Sentry 2 | . . . 2 . . Subdweller 16 | . . 16 . . . Best Kill Streak 4 | 3 4 2 3 . . Combat Bots Only 4 | . 4 2 1 . . Max Kills in Single Turn 2 | 1 2 1 1 . . Gunslinging 1 | . 1 . . . . Exploded . | . . . . . . Melee . | . . . . . . Uniques/NPCs Destroyed . | . . . . . . Combat | -11 -10 -10 -8 -8 -6 -------- Run | Yrd Mat Sub Rec Scr Fac Hostile Shots Fired 190 | . 86 92 6 . 6 Missed 64 | . 25 37 . . 2 Hits 126 | . 61 55 6 . 4 Melee 2 | . . . . . 2 Projectile 124 | . 61 55 6 . 2 Critical Strikes 3 | . 2 . . . 1 Damage Taken 1698 | . 716 785 83 . 114 Core 1336 | . 574 620 48 . 94 Absorbed by Shields . | . . . . . . Redirected to Core 1106 | . 466 516 48 . 76 Ignored by Resistances 15 | . . 15 . . . Core Remaining (%) 55 | 100 . . . 11 . Volleys Fired 189 | 10 67 95 7 . 10 Largest 2 | 2 2 2 2 . 2 Hottest 86 | 40 86 86 66 . 74 Shots Fired 367 | 20 133 180 14 . 20 Gun 164 | 20 117 27 . . . Cannon 203 | . 16 153 14 . 20 Launcher . | . . . . . . Special . | . . . . . . Kinetic 325 | 20 118 153 14 . 20 Thermal 42 | . 15 27 . . . Explosive . | . . . . . . Electromagnetic . | . . . . . . Robot Hit Streak 26 | 6 10 26 9 . 11 Robot Miss Streak 6 | 6 4 5 . . . Penetration Max . | . . . . . . Secondary Targets 2 | . 2 . . . . Max Gunslinging Chain 1 | . 1 . . . . Autonomous 24 | . . 24 . . . Shots Hit Robots 205 | 9 78 109 7 . 2 Core Hits 88 | 4 31 48 4 . 1 Critical Kills . | . . . . . . Critical Parts Destroyed . | . . . . . . Critical Strikes 3 | . . 3 . . . Blast 3 | . . 3 . . . Melee Attacks . | . . . . . . Impact . | . . . . . . Slashing . | . . . . . . Piercing . | . . . . . . Sneak Attacks . | . . . . . . Combat Hostiles . | . . . . . . Follow-up Attacks . | . . . . . . Damage Inflicted 3467 | 102 1130 2016 159 . 60 Guns 1482 | 102 1010 370 . . . Cannons 1985 | . 120 1646 159 . 60 Explosions . | . . . . . . Melee . | . . . . . . Ramming . | . . . . . . Kinetic 2942 | 102 975 1646 159 . 60 Thermal 525 | . 155 370 . . . Explosive . | . . . . . . Electromagnetic . | . . . . . . Impact . | . . . . . . Slashing . | . . . . . . Piercing . | . . . . . . Highest Corruption . | . . . . . . Average Corruption . | . . . . . . Corruption Purged . | . . . . . . Corruption Blocked . | . . . . . . Overload Shots . | . . . . . . Overflow Damage 17 | . . 17 . . . Projectiles 17 | . . 17 . . . Explosions . | . . . . . . Melee . | . . . . . . Knockbacks 21 | . . 20 . . 1 Impact . | . . . . . . Kinetic 20 | . . 19 . . 1 Secondary 1 | . . 1 . . . Self-Inflicted Damage . | . . . . . . Shots . | . . . . . . Rammed . | . . . . . . Targets Rammed . | . . . . . . Kicked . | . . . . . . Crushed . | . . . . . . Highest Temperature 22 | . . 22 . . . Average Temperature 16 | . . 16 . . . Received Heat Transfer 567 | . 273 249 27 . 18 Siege Activations . | . . . . . . Martial Activations . | . . . . . . Shielding Activations . | . . . . . . Robots Disrupted . | . . . . . . Combat Hostiles . | . . . . . . Robots Corrupted . | . . . . . . Combat Hostiles . | . . . . . . Parts Fried . | . . . . . . Impact Corruptions . | . . . . . . Robots Melted . | . . . . . . Combat Hostiles . | . . . . . . Parts Melted 1 | . . 1 . . . Heat Transferred 1668 | . 407 1261 . . . Parts Sabotaged . | . . . . . . Parts Stolen . | . . . . . . Parts Stripped . | . . . . . . Power Chain Reactions . | . . . . . . Alert | -11 -10 -10 -8 -8 -6 ------- Run | Yrd Mat Sub Rec Scr Fac Maximum Alert Level . | . . . . . . Low Security (%) 100 | 100 100 . 100 . 100 Level 1 . | . . . . . . Level 2 . | . . . . . . Level 3 . | . . . . . . Level 4 . | . . . . . . Level 5 . | . . . . . . High Security . | . . . . . . Max Security . | . . . . . . Peak Influence 194 | 10 194 . 62 . 30 Initial 62 | . . . 62 . . Average 22 | . 44 . 4 . 2 Influence Increases 850 | 15 454 250 65 . 66 Destroy 0b10 Robot/C 380 | . 240 100 40 . . Destroy 0b10 Robot/NC 85 | 15 60 . 10 . . Destroy Leader 70 | . 70 . . . . Successful Hack 58 | . 20 . 10 . 28 Disable Machine 45 | . 15 . . . 30 Destroy Structure 17 | . 4 . 5 . 8 Lose Combat Pursuer 195 | . 45 150 . . . Influence Decreases 848 | 15 454 120 195 . 64 Entered New Map 68 | . . . 68 . . Time Decay 775 | 15 454 120 122 . 64 Purge Threat 5 | . . . 5 . . Squads Dispatched 3 | . 2 . . . 1 Investigation 1 | . 1 . . . . Extermination 1 | . . . . . 1 Reinforcement 1 | . 1 . . . . Assault . | . . . . . . Garrison . | . . . . . . Intercept . | . . . . . . Searches Triggered . | . . . . . . Construction Impeded . | . . . . . . Haulers Reinforced . | . . . . . . Active Scanning Responses . | . . . . . . Cargo Convoy Interrupts . | . . . . . . Stealth | -11 -10 -10 -8 -8 -6 --------- Run | Yrd Mat Sub Rec Scr Fac Distress Signals 1 | . 1 . . . . Communications Jammed . | . . . . . . Distress Signals . | . . . . . . Times Spotted 58 | . 23 30 2 . 3 Peak Tracking Total 6 | . 5 6 1 . 3 Tactical Retreats 8 | . 3 5 . . . Traps | -11 -10 -10 -8 -8 -6 ------- Run | Yrd Mat Sub Rec Scr Fac Traps Triggered 8 | . 6 1 . . 1 Indirectly . | . . . . . . Trap Hack Attempts . | . . . . . . Triggered . | . . . . . . Disarmed . | . . . . . . Reprogrammed . | . . . . . . Reused . | . . . . . . Traps Extracted . | . . . . . . Installed . | . . . . . . Triggered . | . . . . . . Machines | -11 -10 -10 -8 -8 -6 ---------- Run | Yrd Mat Sub Rec Scr Fac Machines Disabled 4 | . 1 1 . . 2 Max in Single Turn 1 | . 1 1 . . 1 Machines Repaired . | . . . . . . Machines Dismantled . | . . . . . . Machines Sabotaged . | . . . . . . Overloaded Fab Kills . | . . . . . . Hacking | -11 -10 -10 -8 -8 -6 --------- Run | Yrd Mat Sub Rec Scr Fac Machines Accessed 29 | . 9 3 8 6 3 Terminals 14 | . 7 . 6 . 1 Fabricators . | . . . . . . Repair Stations . | . . . . . . Recycling Units 4 | . 2 . 2 . . Scanalyzers 2 | . . . . . 2 Garrison Access . | . . . . . . Total Hacks 107 | . 29 5 24 41 8 Successful 78 | . 14 5 13 41 5 Failed 29 | . 15 . 11 . 3 Catastrophic 3 | . 2 . 1 . . Database Lockouts . | . . . . . . Manual 50 | . 25 . 20 . 5 Terminals 43 | . 24 . 16 . 3 Fabricators . | . . . . . . Repair Stations . | . . . . . . Recycling Units 13 | . 5 . 8 . . Scanalyzers 5 | . . . . . 5 Garrison Access . | . . . . . . Terminal Hacks 49 | . 2 5 1 41 . Record 37 | . . 4 . 33 . Robot Analysis 9 | . 2 . . 7 . Open Door 1 | . . 1 . . . Unreport Threat 1 | . . . 1 . . Proto ID Catalog 1 | . . . . 1 . Fabricator Hacks . | . . . . . . Repair Station Hacks . | . . . . . . Recycling Unit Hacks 5 | . 2 . 3 . . Report Inventory 4 | . 2 . 2 . . Retrieve Components 1 | . . . 1 . . Scanalyzer 3 | . . . . . 3 Retrieve Study 3 | . . . . . 3 Garrison Access Hacks . | . . . . . . Unauthorized Hacks 21 | . 10 . 9 . 2 Terminals 17 | . 9 . 7 . 1 Track 1 | . 1 . . . . Botnet 4 | . 2 . 2 . . Operators 1 | . 1 . . . . Skim 11 | . 5 . 5 . 1 Fabricators . | . . . . . . Repair Stations . | . . . . . . Recycling Units 3 | . 1 . 2 . . Reject 2 | . 1 . 1 . . Recyclers 1 | . . . 1 . . Scanalyzers 1 | . . . . . 1 Researchers 1 | . . . . . 1 Garrison Access . | . . . . . . Data Cores Recovered . | . . . . . . Used . | . . . . . . Hacking Detections 16 | . 9 . 6 . 1 Full Trace Events 1 | . 1 . . . . Feedback Events . | . . . . . . Feedback Blocked . | . . . . . . Robot Schematics Acquired . | . . . . . . Robots Built . | . . . . . . Authchips . | . . . . . . Time . | . . . . . . Total Robot Build Rating . | . . . . . . Part Schematics Acquired . | . . . . . . Parts Built . | . . . . . . Authchips . | . . . . . . Time . | . . . . . . Total Part Build Rating . | . . . . . . Part Studies Acquired 3 | . . . . . 3 Parts Repaired . | . . . . . . Time . | . . . . . . Parts Recycled . | . . . . . . Recycled Matter . | . . . . . . Retrieved Matter . | . . . . . . Retrieved Components 2 | . . . 2 . . Parts Scanalyzed . | . . . . . . Part Schematics Acquired . | . . . . . . Parts Damaged . | . . . . . . Bothacking | -11 -10 -10 -8 -8 -6 ------------ Run | Yrd Mat Sub Rec Scr Fac Used RIF Installer . | . . . . . . Robots Hacked . | . . . . . . Non-combat . | . . . . . . Combat . | . . . . . . Robot Hacks Applied . | . . . . . . Relay Couplers Released . | . . . . . . Fabnet Peak Effective % . | . . . . . . Robots Rewired . | . . . . . . Allies Hacked . | . . . . . . Hacks Repelled . | . . . . . . Allies | -11 -10 -10 -8 -8 -6 -------- Run | Yrd Mat Sub Rec Scr Fac Total Allies . | . . . . . . Largest Group . | . . . . . . Highest-Rated Group . | . . . . . . Highest-Rated Ally . | . . . . . . Total Orders . | . . . . . . Ally Attacks . | . . . . . . Total Damage . | . . . . . . Kills . | . . . . . . Allies Corrupted . | . . . . . . Allies Melted . | . . . . . . Intel | -11 -10 -10 -8 -8 -6 ------- Run | Yrd Mat Sub Rec Scr Fac Active Infowar (turns) 11780 | 448 2037 5396 1370 2084 445 Terrain 11780 | 448 2037 5396 1370 2084 445 Robot Analysis Total 8 | . 1 . . 7 . Derelict Logs Recovered 3 | . . 3 . . . Drone Launches . | . . . . . . Drone Recoveries . | . . . . . . Exploration | -11 -10 -10 -8 -8 -6 ------------- Run | Yrd Mat Sub Rec Scr Fac Turns Passed 11855 | 523 2037 5396 1370 2084 445 Spaces Moved 5415 | 42 1018 2246 585 1279 245 Core 7 | 6 1 . . . . Treads 5408 | 36 1017 2246 585 1279 245 Legs . | . . . . . . Wheels . | . . . . . . Hover . | . . . . . . Flight . | . . . . . . Fastest Speed 50 | 50 160 160 157 157 157 Average Speed 159 | 144 160 160 159 157 157 Slowest Speed 200 | 160 200 160 165 157 157 Overloaded Moves . | . . . . . . Propulsion Burnouts . | . . . . . . Robots Hopped . | . . . . . . Potential Cave-ins 10 | . . 6 2 . 2 Cave-ins Triggered . | . . . . . . Exploration Rate (%) 61 | 4 96 84 93 83 6 Regions Visited 5 Branch Regions 3 Pre-discovered Areas 4 | . 2 1 1 . . Known Exits Taken 2 | . 1 . 1 . . Unknown Exits Taken 3 | 1 . 1 . 1 . Scrap Searched 12 | . . 10 . 2 . Spaces Dug 21 | . . 6 6 . 9 Terrain Destroyed 23 | . . 7 6 . 10 Melee . | . . . . . . Projectile 23 | . . 7 6 . 10 AOE . | . . . . . . Terrain Rammed . | . . . . . . Walls Destroyed . | . . . . . . Machines Disabled . | . . . . . . Actions | -11 -10 -10 -8 -8 -6 --------- Run | Yrd Mat Sub Rec Scr Fac Total 8312 | 481 1291 3894 1006 1355 285 Wait 2610 | 424 173 1513 403 69 28 Move 5410 | 41 1017 2245 584 1278 245 Hop . | . . . . . . Pick Up 5 | . 2 2 1 . . Fast Attach 28 | 6 11 5 1 4 1 Attach 2 | . 1 1 . . . Detach 4 | . 1 2 . 1 . Swap 14 | . 2 4 6 1 1 Drop 20 | . 7 7 4 2 . Fire 189 | 10 67 95 7 . 10 Melee . | . . . . . . Ram . | . . . . . . Kick . | . . . . . . Crush . | . . . . . . Escape Stasis . | . . . . . . Rewire . | . . . . . . Trap . | . . . . . . Miscellaneous 30 | . 10 20 . . . Route ------- -11/Scrapyard -10/Materials (discovered 5 exits: *Mat x3 / [*Min] / *Sub) -10/Subcaves (discovered 3 exits: *Mat x2 / *Rec) -8/Recycling (discovered 2 exits: *Fac / *Scr) -8/Scraptown (discovered 2 exits: *Fac x2) -6/Factory (discovered 1 exit: [Fac]) History --------- Turn | Location | Event 1 | -11/Scrapyard | Upgraded with Propulsion slot (x1) 1 | -11/Scrapyard | Upgraded with Utility slot (x2) 1 | -11/Scrapyard | Upgraded with Weapon slot (x1) 5 | -11/Scrapyard | Discovered new exit (range 14) 524 | -11/Scrapyard | Entered Materials 525 | -10/Materials | Build established: Mutant 838 | -10/Materials | Discovered new exit (range 16) 942 | -10/Materials | Core integrity fell below 50% 1313 | -10/Materials | Discovered new exit (range 12) 1458 | -10/Materials | Discovered new exit (range 16) 1652 | -10/Materials | Discovered new exit (range 13) 1774 | -10/Materials | Learned location of 1 exit from Recycling 1817 | -10/Materials | Identified exit to Materials 1822 | -10/Materials | Identified exit to Subcaves 1823 | -10/Materials | Learned Storage security intel 1824 | -10/Materials | Learned location of Mines (-9) 1825 | -10/Materials | Learned location of Mines (-10) 1880 | -10/Materials | Learned Storage stockpile data 2274 | -10/Materials | Reached level 2 2409 | -10/Materials | Upgraded with Utility slot (x1) 2561 | -10/Materials | Entered Subcaves 2562 | -10/Subcaves | Identified exit to Materials 2568 | -10/Subcaves | Learned 2 Materials zone layouts 2898 | -10/Subcaves | Shifting Twisted Machinery released Flamer 2949 | -10/Subcaves | Shifting Twisted Machinery released Battle Cannon 3840 | -10/Subcaves | Shifting Twisted Machinery released Riot Gun 4947 | -10/Subcaves | Discovered new exit (range 15) 5082 | -10/Subcaves | Reached level 3 5332 | -10/Subcaves | Visited Clippyterm 5337 | -10/Subcaves | Learned location of Extension (-4) 5363 | -10/Subcaves | Build established: Scavenger-Mutant 5501 | -10/Subcaves | Disturbed a concealed Subdweller 5502 | -10/Subcaves | Core integrity fell below 20% 6335 | -10/Subcaves | Learned Materials stockpile data 6499 | -10/Subcaves | Upgraded with Utility slot (x1) 7957 | -10/Subcaves | Entered Recycling 7958 | -8/Recycling | Identified exit to Scraptown 8252 | -8/Recycling | Build established: Mutant 8549 | -8/Recycling | Discovered new exit (range 9) 9288 | -8/Recycling | Scanned before Scraplab entrance 9312 | -8/Recycling | Entered Scraplab 9327 | -8/Recycling | Entered Scraptown 9329 | -8/Scraptown | Reached level 4 9431 | -8/Scraptown | Visited UFD Registry 9431 | -8/Scraptown | Registered with UFD as "Protonmaster" 9475 | -8/Scraptown | Visited Science Guys 9549 | -8/Scraptown | Visited Chapter 10 9596 | -8/Scraptown | Delivered Scrap Shield to a Scientist 9627 | -8/Scraptown | Build established: Skirmisher 9728 | -8/Scraptown | Visited Research Penetration Think Tank 9762 | -8/Scraptown | Visited Junk Repository 9808 | -8/Scraptown | Visited Scrap Suit Storage 9839 | -8/Scraptown | Visited Analyses Database 9897 | -8/Scraptown | Visited Cartography Club 9933 | -8/Scraptown | Found Surveybot 17 Chip 10366 | -8/Scraptown | Discovered new exit (range 13) 10468 | -8/Scraptown | Heard Great Nut preacher, LISTEN AND RECITE! 10473 | -8/Scraptown | Visited IN-MT5's Study 10504 | -8/Scraptown | Visited Red Mages 10581 | -8/Scraptown | Visited Comm Corps 10595 | -8/Scraptown | Visited Cave Peace 10810 | -8/Scraptown | Visited The Evicted 11330 | -8/Scraptown | Met Optimus 11330 | -8/Scraptown | Accepted into 0bPrime 11394 | -8/Scraptown | Discovered new exit (range 13) 11411 | -8/Scraptown | Entered Factory 11412 | -6/Factory | Core integrity fell below 50% 11412 | -6/Factory | Core integrity fell below 20% 11413 | -6/Factory | Reached level 5 11424 | -6/Factory | Upgraded with Utility slot (x1) 11833 | -6/Factory | Discovered new exit (range 16) 11856 | -6/Factory | Destroyed by L-41 Fighter with Axe Last Messages --------------- >>Study(Arm. Treads) Identified Arm. Treads... Downloading performance data... Effective improvements: Penalty/2 11755_ ALERT: Security rotation in progress. 11824_ ALERT: Potential suspicious activity detected, Programmers report to Factory Zone 9T. 11827_ Connecting with Scanalyzer... >>Trojan(Researchers) Trojan loaded successfully. Testing... Researcher tracking enabled and active. 11833_ EXIT=FOUND 11853_ Triggered Ambush Trap. 11853_ L-41 Fighter emerges from a hatch in the floor. 11853_ G-50 Soldier emerges from a hatch in the floor. 11853_ ALERT: All DSF locations entering lockdown mode. 11853_ Cold Fusion Reactor severed. 11854_ L-41 Fighter knocked back. Map ----- +----------------------------------------------------+ | ?????????????????????????????????????????????????? | | ?????????????????????????????????????????????????? | | ?????????????????????????????????????????????????? | | ?????????????????????????????????????????????????? | | ?????????????????????????????????????????????????? | | ?????????????????????????????????????????????????? | | ?????????????????????????????????????????????????? | | ???????????????????????????? ? ? ??? ?????????? | | ???????????????????????????